Cogmind - Beta 14 @@@ ROGUE MODE // 2025.03.04 @ 23:24:46 Player: Skergy Result: Destroyed by AI-M6C(R) with Subdweller Machine Gun Performance ------------- Evolutions (0) 0 Regions Visited (2) 400 Robots Destroyed (22) 110 Value Destroyed (552) 552 Prototype IDs (0) 0 Alien Tech Used (0) 0 Bonus (0) 0 TOTAL SCORE: 1062 Bonus ------- None Cogmind --------- Core Integrity 0/250 Matter 276/300 Energy 239/250 System Corruption 2% Temperature Cool (8) Movement Rolling (115) Ox1 Location -10/Subcaves Parts ------- > --- POWER (1) -------- Ion Engine > --- PROPULSION (2) --- Compact Wheel Compact Wheel > --- UTILITY (2) ------ Large Storage Unit Makeshift Light Armor Plating > --- WEAPON (2) ------- Riot Gun Barrage Gun > --- INVENTORY (15) --- Ion Engine Ion Engine Light Treads Light Treads Aluminum Leg Aluminum Leg Small Storage Unit Medium Storage Unit Subdweller Optics Signal Interpreter Makeshift Light Armor Plating Assault Rifle Makeshift Hammer Peak State ------------ > --- POWER ------------ Ion Engine > --- PROPULSION ------- Compact Wheel Compact Wheel > --- UTILITY ---------- Large Storage Unit Makeshift Light Armor Plating > --- WEAPON ----------- Riot Gun Barrage Gun > --- INVENTORY -------- Ion Engine Ion Engine Light Treads Light Treads Aluminum Leg Aluminum Leg Small Storage Unit Medium Storage Unit Subdweller Optics Signal Interpreter Makeshift Light Armor Plating Assault Rifle Makeshift Hammer [Rating: 16] Favorites ----------- Power Ion Engine Engine Ion Engine Propulsion Compact Wheel Wheel Compact Wheel Utility Large Storage Unit Storage Large Storage Unit Protection Power Shielding Weapon Medium Laser Energy Gun Medium Laser Ballistic Gun Assault Rifle Impact Weapon Makeshift Hammer Build | -11 -10 -10 ------- Run | Yrd Mat Sub Slots Evolved . | . . . Power . | . . . Propulsion . | . . . Utility . | . . . Weapon . | . . . Parts Attached 28 | 6 6 16 Power 1 | 1 . . Engine 1 | 1 . . Core . | . . . Reactor . | . . . Propulsion 4 | 2 2 . Treads . | . . . Leg . | . . . Wheel 4 | 2 2 . Hover . | . . . Flight . | . . . Utility 4 | 1 2 1 Device . | . . . Storage 2 | 1 1 . Processor . | . . . Hackware . | . . . Protection 2 | . 1 1 Artifact . | . . . Weapon 19 | 2 2 15 Energy Gun 10 | 1 1 8 Energy Cannon . | . . . Ballistic Gun 2 | 1 . 1 Ballistic Cannon . | . . . Launcher . | . . . Special Weapon . | . . . Impact Weapon 7 | . 1 6 Slashing Weapon . | . . . Piercing Weapon . | . . . Special Melee Weapon . | . . . Unidentified Prototypes . | . . . Parts Lost 5 | . 2 3 Power . | . . . Propulsion 1 | . 1 . Utility . | . . . Weapon 4 | . 1 3 Highest Loss Streak 2 | . 2 1 To Critical Strikes . | . . . Average Slot Usage (%) 97 | . 92 100 Engine 14 | . 14 14 Wheel 27 | . 27 28 Storage 14 | . 14 14 Protection 11 | . 7 14 Energy Gun 21 | . 16 23 Ballistic Gun 3 | . 8 1 Impact Weapon 3 | . 1 3 Peak Build Rating 16 | 6 8 16 Average Rating 9 | 4 7 10 On Entrance 4 | . 6 8 Naked Turns . | . . . Heaviest Build 35 | 14 30 35 Greatest Support 32 | 26 32 32 Greatest Overweight (x) 1 | . 1 1 Average Overweight (x) . | . . . Largest Inventory Capacity 15 | 8 15 15 Average Capacity 14 | 7 14 15 Most Carried 15 | 6 15 15 Average Carried 13 | 3 12 14 Final Capacity 15 | 8 15 15 Final Carried 15 | 6 15 13 Class Distribution -------------------- 100% | Mutant Dominant Class ---------------- Mutant | -10/Materials Mutant | -10/Subcaves Resources | -11 -10 -10 ----------- Run | Yrd Mat Sub Matter Collected 591 | 239 167 185 Remotely . | . . . Salvage Created 677 | . 414 263 Parts 55 | . 37 18 Haulers Intercepted . | . . . Recyclers Shooed . | . . . Parts Field Recycled . | . . . Retrieved Matter . | . . . Parts Self-Destructed 8 | . . 8 Prevented . | . . . Kills | -11 -10 -10 ------- Run | Yrd Mat Sub Combat Hostiles Destroyed 18 | . 11 7 Guns 17 | . 11 6 Classes Destroyed 6 | . 4 2 Operator 1 | . 1 . Watcher 3 | . 3 . Swarmer 8 | . 6 2 Grunt 5 | . 5 . Sentry 1 | . . 1 Subdweller 4 | . . 4 Best Kill Streak 4 | . 4 2 Combat Bots Only 3 | . 3 2 Max Kills in Single Turn 2 | . 2 1 Gunslinging 1 | . 1 . Exploded . | . . . Melee . | . . . Uniques/NPCs Destroyed . | . . . Combat | -11 -10 -10 -------- Run | Yrd Mat Sub Hostile Shots Fired 101 | . 44 57 Missed 28 | . 14 14 Damage Taken 938 | . 324 614 Core 250 | . 46 204 Absorbed by Shields . | . . . Redirected to Shielding 6 | . . 6 Core Remaining (%) 100 | 100 . . Volleys Fired 64 | . 37 27 Largest 2 | . 2 2 Hottest 100 | . 90 100 Shots Fired 125 | . 73 52 Gun 125 | . 73 52 Cannon . | . . . Launcher . | . . . Special . | . . . Kinetic 40 | . 33 7 Thermal 47 | . 3 44 Explosive . | . . . Electromagnetic 38 | . 37 1 Robot Hit Streak 10 | . 6 10 Robot Miss Streak 4 | . 4 3 Penetration Max . | . . . Secondary Targets 2 | . 2 . Max Gunslinging Chain 1 | . 1 . Shots Hit Robots 74 | . 43 31 Core Hits 36 | . 23 13 Critical Kills . | . . . Critical Parts Destroyed . | . . . Critical Strikes 2 | . . 2 Burn 2 | . . 2 Melee Attacks 29 | . 1 28 Impact 29 | . 1 28 Slashing . | . . . Piercing . | . . . Sneak Attacks . | . . . Combat Hostiles . | . . . Follow-up Attacks . | . . . Damage Inflicted 1043 | . 651 392 Guns 1006 | . 614 392 Cannons . | . . . Explosions 37 | . 37 . Melee . | . . . Ramming . | . . . Kinetic 269 | . 216 53 Thermal 412 | . 73 339 Explosive . | . . . Electromagnetic 362 | . 362 . Impact . | . . . Slashing . | . . . Piercing . | . . . Highest Corruption 2 | . 2 2 Average Corruption 2 | . 2 2 Corruption Purged . | . . . Corruption Blocked . | . . . Effects 26 | . . 26 Message Errors 12 | . . 12 Matter Fused 3 | . . 3 Heat Flow Errors 1 | . . 1 Energy Discharges 5 | . . 5 Data Loss (minor) 4 | . . 4 Misfires 1 | . . 1 Overload Shots . | . . . Overflow Damage . | . . . Projectiles . | . . . Explosions . | . . . Melee . | . . . Knockbacks . | . . . Impact . | . . . Kinetic . | . . . Secondary . | . . . Self-Inflicted Damage . | . . . Shots . | . . . Rammed . | . . . Targets Rammed . | . . . Kicked . | . . . Crushed . | . . . Highest Temperature 137 | . 108 137 Average Temperature 28 | . 35 14 Received Heat Transfer 279 | . 117 162 Siege Activations . | . . . Robots Corrupted . | . . . Combat Hostiles . | . . . Parts Fried . | . . . Impact Corruptions . | . . . Robots Melted 1 | . . 1 Combat Hostiles 1 | . . 1 Parts Melted 2 | . . 2 Heat Transferred 1308 | . 161 1147 Parts Sabotaged . | . . . Parts Stolen . | . . . Parts Stripped . | . . . Power Chain Reactions 1 | . 1 . Alert | -11 -10 -10 ------- Run | Yrd Mat Sub Peak Influence 340 | . 340 . Initial . | . . . Average 143 | . 153 . Maximum Alert Level 1 | . 1 . Low Security (%) 54 | 100 51 . Level 1 45 | . 48 . Level 2 . | . . . Level 3 . | . . . Level 4 . | . . . Level 5 . | . . . High Security . | . . . Max Security . | . . . Squads Dispatched 2 | . 2 . Investigation . | . . . Extermination . | . . . Reinforcement 2 | . 2 . Assault . | . . . Garrison . | . . . Intercept . | . . . Searches Triggered . | . . . Construction Impeded . | . . . Haulers Reinforced . | . . . Active Scanning Responses . | . . . Cargo Convoy Interrupts . | . . . Stealth | -11 -10 -10 --------- Run | Yrd Mat Sub Distress Signals 2 | . 2 . Communications Jammed . | . . . Distress Signals . | . . . Times Spotted 32 | . 20 12 Peak Tracking Total 4 | . 3 4 Tactical Retreats 3 | . . 3 Traps | -11 -10 -10 ------- Run | Yrd Mat Sub Traps Triggered 2 | . 2 . Indirectly . | . . . Trap Hack Attempts . | . . . Triggered . | . . . Disarmed . | . . . Reprogrammed 3 | . 3 . Reused . | . . . Traps Extracted . | . . . Installed . | . . . Triggered . | . . . Machines | -11 -10 -10 ---------- Run | Yrd Mat Sub Machines Disabled 2 | . 2 . Max in Single Turn 1 | . 1 . Machines Repaired . | . . . Machines Dismantled . | . . . Machines Sabotaged . | . . . Overloaded Fab Kills . | . . . Hacking | -11 -10 -10 --------- Run | Yrd Mat Sub Machines Accessed 5 | . 4 1 Terminals 4 | . 4 . Fabricators . | . . . Repair Stations . | . . . Recycling Units . | . . . Scanalyzers . | . . . Garrison Access . | . . . Total Hacks 20 | . 16 4 Successful 11 | . 7 4 Failed 9 | . 9 . Catastrophic 2 | . 2 . Database Lockouts . | . . . Manual 7 | . 7 . Terminals 16 | . 16 . Fabricators . | . . . Repair Stations . | . . . Recycling Units . | . . . Scanalyzers . | . . . Garrison Access . | . . . Terminal Hacks 9 | . 5 4 Record 4 | . . 4 Unreport Threat 2 | . 2 . Locate Traps 1 | . 1 . Reprogram Traps 2 | . 2 . Fabricator Hacks . | . . . Repair Station Hacks . | . . . Recycling Unit Hacks . | . . . Scanalyzer . | . . . Garrison Access Hacks . | . . . Unauthorized Hacks 2 | . 2 . Terminals 2 | . 2 . Botnet 2 | . 2 . Fabricators . | . . . Repair Stations . | . . . Recycling Units . | . . . Scanalyzers . | . . . Garrison Access . | . . . Data Cores Recovered . | . . . Used . | . . . Hacking Detections 4 | . 4 . Full Trace Events 1 | . 1 . Feedback Events . | . . . Feedback Blocked . | . . . Robot Schematics Acquired . | . . . Robots Built . | . . . Authchips . | . . . Time . | . . . Total Robot Build Rating . | . . . Part Schematics Acquired . | . . . Parts Built . | . . . Authchips . | . . . Time . | . . . Total Part Build Rating . | . . . Parts Repaired . | . . . Time . | . . . Parts Recycled . | . . . Recycled Matter . | . . . Retrieved Matter . | . . . Retrieved Components . | . . . Parts Scanalyzed . | . . . Part Schematics Acquired . | . . . Parts Damaged . | . . . Bothacking | -11 -10 -10 ------------ Run | Yrd Mat Sub Used RIF Installer . | . . . Robots Hacked . | . . . Non-combat . | . . . Combat . | . . . Robot Hacks Applied . | . . . Relay Couplers Released . | . . . Fabnet Peak Effective % . | . . . Robots Rewired . | . . . Allies Hacked . | . . . Hacks Repelled . | . . . Allies | -11 -10 -10 -------- Run | Yrd Mat Sub Total Allies . | . . . Largest Group . | . . . Highest-Rated Group . | . . . Highest-Rated Ally . | . . . Total Orders . | . . . Ally Attacks . | . . . Total Damage . | . . . Kills . | . . . Allies Corrupted . | . . . Allies Melted . | . . . Intel | -11 -10 -10 ------- Run | Yrd Mat Sub Robot Analysis Total . | . . . Derelict Logs Recovered 2 | . . 2 Drone Launches . | . . . Drone Recoveries . | . . . Exploration | -11 -10 -10 ------------- Run | Yrd Mat Sub Turns Passed 2227 | 47 652 1528 Spaces Moved 1796 | 36 484 1276 Core 1 | 1 . . Treads . | . . . Legs . | . . . Wheels 1795 | 35 484 1276 Hover . | . . . Flight . | . . . Fastest Speed 50 | 50 90 100 Average Speed 105 | 89 102 106 Slowest Speed 115 | 100 105 115 Overloaded Moves . | . . . Propulsion Burnouts . | . . . Robots Hopped . | . . . Cave-ins Triggered . | . . . Exploration Rate (%) 48 | 3 75 66 Regions Visited 2 Branch Regions 1 Pre-discovered Areas 1 | . . 1 Known Exits Taken . | . . . Unknown Exits Taken 2 | 1 1 . Scrap Searched . | . . . Spaces Dug 11 | . 1 10 Terrain Destroyed 13 | . 3 10 Melee 11 | . 1 10 Projectile . | . . . AOE 2 | . 2 . Terrain Rammed . | . . . Walls Destroyed . | . . . Machines Disabled . | . . . Actions | -11 -10 -10 --------- Run | Yrd Mat Sub Total 1976 | 47 565 1364 Wait 33 | . 27 6 Move 1794 | 35 483 1276 Hop . | . . . Pick Up 20 | 6 9 5 Fast Attach 10 | 6 3 1 Attach 4 | . 1 3 Detach 1 | . 1 . Swap 14 | . 2 12 Drop 7 | . 1 6 Fire 64 | . 37 27 Melee 29 | . 1 28 Ram . | . . . Kick . | . . . Crush . | . . . Escape Stasis . | . . . Rewire . | . . . Trap . | . . . Miscellaneous . | . . . Route ------- -11/Scrapyard -10/Materials (discovered 5 exits: [*Mat x2] / [*Min x2] / *Sub) -10/Subcaves (discovered 2 exits: [*Mat] / [*Rec]) History --------- Turn | Location | Event 22 | -11/Scrapyard | Discovered new exit (range 15) 48 | -11/Scrapyard | Entered Materials 48 | -10/Materials | Discovered new exit (range 8) 197 | -10/Materials | Discovered new exit (range 13) 301 | -10/Materials | Build established: Mutant 491 | -10/Materials | Discovered new exit (range 15) 535 | -10/Materials | Discovered new exit (range 15) 681 | -10/Materials | Discovered new exit (range 6) 700 | -10/Materials | Entered Subcaves 701 | -10/Subcaves | Shifting Twisted Machinery released Mak. Hammer 730 | -10/Subcaves | Core integrity fell below 50% 830 | -10/Subcaves | Visited Clippyterm 833 | -10/Subcaves | Learned Research machine intel 833 | -10/Subcaves | Learned 40 Factory zone layouts 848 | -10/Subcaves | Learned location of Zion (-7) 848 | -10/Subcaves | Met a Zionite searching for "candidates" 1236 | -10/Subcaves | A swath of the cavern ceiling suddenly collapsed 1252 | -10/Subcaves | A swath of the cavern ceiling suddenly collapsed 1308 | -10/Subcaves | Shifting Twisted Machinery released Barrage Gun 1504 | -10/Subcaves | Shifting Twisted Machinery released Mak. Light Armor Plating 1777 | -10/Subcaves | Shifting Twisted Machinery released Mak. Light Armor Plating 1882 | -10/Subcaves | Core integrity fell below 20% 1926 | -10/Subcaves | Ambushed by Subdwellers from Twisted Machinery 1954 | -10/Subcaves | Discovered new exit (range 13) 2130 | -10/Subcaves | Discovered new exit (range 16) 2146 | -10/Subcaves | Learned location of 1 exit from Materials 2152 | -10/Subcaves | Learned Materials terminal intel 2228 | -10/Subcaves | Destroyed by AI-M6C(R) with Subdweller Machine Gun Last Messages --------------- 02097_ CBSXOORFBPBNN:JKMTYTMB,:SF 02107_ Subatomizers dissect the Sub. Laser. 02110_ Med. Laser destroyed. 02118_ S-10 Pest destroyed. 02120_ Subatomizers dissect the Sub. Laser. 02124_ S-10 Pest destroyed. 02129_ Acquired 19 matter. 02130_ EXIT=FOUND 02134_ P#QEN5:S HZCP9,5|HASIPID 02135_ Lgt. Assault Rifle fries itself beyond repair. 02135_ Flight Unit fries itself beyond repair. 02146_ Acquired derelict log, extracted data. Data stored: Materials exits (x1). 02152_ YGL|7QMJ ORRPKUZBDAFQA6MTS JL 5Q 02152_ Acquired derelict log, extracted data. Data stored: Materials terminal intel. 02169_ Subatomizers dissect the Sub. Laser. 02188_ QXNG4EUL|D962FUVPDBUNPHACLNS0LF N&ESK16S 02211_ NZC4LSQOCRZ329QSDJ2E XC/P/SPU 02220_ Med. Laser destroyed. Map ----- +----------------------------------------------------+ | ?????????????????????????????????????????????????? | | ?????????????????????????????????????????????????? | | ?????????????????????????????????????????????????? | | ?????????????????????????????????????????????????? | | ?????????????????????????????????????????????????? | | ?????????????????????????????????????????????????? | | ?????????????????????????????????????????????????? | | ?????????????????????????????????????????????????? | | ?????????????????????????????????????????????????? | | ?????????????????????????????????????????????????? | | ?????????????????????????????????????????????????? | | ??????????????????????######?????????????????????? | | ??????????????????????# ????????????????????? | | ??????????????????????# ? ??????????????????? | | ??????????????????????? ??????????????????? | | ???????????????????????? ??????????????????? | | ?????????????????????????# #??????????????????? | | ??????????????????????????# #??????????????????? | | ??????????????????????????# ??????????????????? | | ??????????????????????????? ###???????????????? | | ????????????????????????### ? #???????######??? | | ????????????????????????# ??# ###??#### ##?? | | ????????????????????????# ???## # #### ### | | ????????????????????##??# #????# ## ##" | | ???????????????????## ### #????# "" | | ??????????????????##"""R @#????# ## | | ?????????# ##" "" ##??## ## | | ?????????# R" #### ### | | ?????????# " ### # #?# ## | | ?????????? ##" ???# ########?# ### | | ????????????????#"????# #???????# #?## | | ????????????????#?????##"" #?????# #??## | | ???????????????????????## #?????# ###???##" | | ?????????????????????????###?????## #????###" | | ??????????????????????????????????#######???## #" | | ????????????????????????????????????????????# | | ???????????????????????????????????????????## | | ???????????????????????????" ???????????## | | ???????????????????????????"" ??????## | | ??????????????????????????< [%%### | | ???????????????????????????"" %%=%=[ | | ?????????????????????????????????#### %*!%### | | ????????????????????????????????????########?# | | ?????????????????????????????????????????????# | | ?????????????????????????????????????????????# # | | ?????????????????????????????????????????????# # | | ?????????????????????????????????????????????# | | ?????????????????????????????????????????????## | | ??????????????????????????????????????????????## | | ???????????????????????????????????????????????# | +----------------------------------------------------+ Best States ------------- Heat Dissipation 25 Energy Generation 10 Energy Capacity 250 Matter Stores 300 Matter Capacity 300 Sight Range 16 Terrain Scan Density 10 Armor Coverage 100 Power Shielding 33 Evasion (%) 42 Item Schematics ----------------- None Robot Schematics ------------------ None Fabricated ------------ Nothing Alien Tech Used ----------------- None Achievements -------------- None Challenges ------------ None Game ------ Seed GatlingCompactBank Manual? 0 Play Time 00:20:27 Cumulative 60.2 hours Start 2025.03.04 @ 23:01:23 End 2025.03.04 @ 23:24:46 Sessions 1 Manual Loads 0 Difficulty Rogue Special Mode None Game No. 58 Rogue 58 Adventurer 0 Explorer 0 Win Type - Total 2 Types 2/0/0/0/0/0/0/0/0 Lore% 35 Gallery% 41 Achievement% 38 Wizard Run 0 Options --------- Layout 0 ASCII 0 Keyboard 1 Movement Numpad Keybinds 0 Fullscreen 1 Font 24/Smallcaps Map View 76x50 Zoom Use 0% Tactical HUD 1 Map Filters NONE Filters NONE Steam 1 RUN: 1a954fa0-33ce-4d8b-be90-f7775ad51d42